Cogmind - Beta 12 @@@ ROGUE MODE // 2023.10.27 @ 07:23:59 Player: Fleshy Vegetable Bird Result: Destroyed by 8R-AWN with 8R-AWN's Boregun Performance ------------- Evolutions (1) 500 Regions Visited (4) 800 Robots Destroyed (49) 245 Value Destroyed (935) 935 Prototype IDs (10) 200 Alien Tech Used (0) 0 Bonus (231) 231 TOTAL SCORE: 2911 Bonus ------- Aligned with FarCom 300 Friendly Fire -69 Cogmind --------- Core Integrity 0/400 Matter 102/300 Energy 278/280 System Corruption 0% Temperature Cool (0) Movement Rolling (120) Ox2 Location -9/Exiles Parts ------- > --- POWER (1) -------- Heavy Ion Engine > --- PROPULSION (2) --- Armored Wheel Armored Wheel > --- UTILITY (4) ------ High-capacity Storage Unit Visual Processing Unit Improved Terrain Scanner Advanced Targeting Computer > --- WEAPON (2) ------- YOLO Cannon > --- INVENTORY (20) --- Ion Engine Light Fission Core Light Fission Core Light Fission Core Armored Wheel Armored Wheel Signal Interpreter Advanced Targeting Computer Improved Light Armor Plating Hacking Suite Firepult Improved Assault Rifle Improved Assault Rifle Improved Assault Rifle Improved Assault Rifle Improved Assault Rifle Mining Laser Longsword +1 Peak State ------------ > --- POWER ------------ Heavy Ion Engine > --- PROPULSION ------- Armored Wheel Armored Wheel > --- UTILITY ---------- High-capacity Storage Unit Visual Processing Unit Improved Terrain Scanner Advanced Targeting Computer > --- WEAPON ----------- YOLO Cannon > --- INVENTORY -------- Ion Engine Light Fission Core Light Fission Core Light Fission Core Armored Wheel Armored Wheel Signal Interpreter Advanced Targeting Computer Improved Light Armor Plating Hacking Suite Firepult Improved Assault Rifle Improved Assault Rifle Improved Assault Rifle Improved Assault Rifle Improved Assault Rifle Mining Laser Longsword +1 [Rating: 43] Favorites ----------- Power Ion Engine Engine Ion Engine Power Core Light Nuclear Core Propulsion Wheel Treads Light Treads Wheel Wheel Utility Visual Processing Unit Device Improved Terrain Scanner Storage Large Storage Unit Processor Visual Processing Unit Weapon Medium Laser Energy Gun Medium Laser Energy Cannon YOLO Cannon Ballistic Gun Heavy Assault Rifle Launcher Grenade Launcher Special Weapon Mining Laser Slashing Weapon Longsword +1 Build | -11 -10 -9 -9 -9 ------- Run | Jun Mat Mat Min Exi Slots Evolved 2 | . . 2 . . Power . | . . . . . Propulsion . | . . . . . Utility 2 | . . 2 . . Weapon . | . . . . . Parts Attached 35 | 5 7 17 . 6 Power 5 | 1 . 4 . . Engine 4 | 1 . 3 . . Core 1 | . . 1 . . Reactor . | . . . . . Propulsion 9 | 1 2 4 . 2 Treads 1 | . . 1 . . Leg . | . . . . . Wheel 8 | 1 2 3 . 2 Hover . | . . . . . Flight . | . . . . . Utility 7 | 1 2 3 . 1 Device 1 | . . 1 . . Storage 4 | 1 1 1 . 1 Processor 2 | . 1 1 . . Hackware . | . . . . . Protection . | . . . . . Artifact . | . . . . . Weapon 14 | 2 3 6 . 3 Energy Gun 5 | 2 2 1 . . Energy Cannon 2 | . . . . 2 Ballistic Gun 3 | . . 3 . . Ballistic Cannon . | . . . . . Launcher 2 | . . 2 . . Special Weapon 1 | . 1 . . . Impact Weapon . | . . . . . Slashing Weapon 1 | . . . . 1 Piercing Weapon . | . . . . . Special Melee Weapon . | . . . . . Unidentified Prototypes 4 | . . 1 . 3 Parts Lost 8 | . 1 7 . . Power 2 | . . 2 . . Propulsion 4 | . 1 3 . . Utility . | . . . . . Weapon 2 | . . 2 . . Highest Loss Streak 6 | . 1 6 . . To Critical Strikes . | . . . . . Average Slot Usage (%) 92 | . 93 90 100 96 Engine 10 | . 14 8 11 11 Wheel 22 | . 24 21 22 22 Device 7 | . . 11 11 11 Storage 11 | . 14 11 11 11 Processor 15 | . 11 15 22 22 Energy Gun 12 | . 25 10 . . Ballistic Gun 9 | . . 11 22 15 Naked Turns . | . . . . . Heaviest Build 67 | 13 29 35 35 67 Greatest Support 24 | 10 20 22 22 24 Greatest Overweight (x) 2 | 1 1 2 1 2 Average Overweight (x) . | . . 1 1 1 Largest Inventory Capacity 20 | 8 15 15 15 20 Average Capacity 13 | 7 9 15 15 19 Most Carried 19 | 5 10 15 15 19 Average Carried 10 | 2 6 11 15 15 Final Capacity 20 | 8 15 15 15 20 Final Carried 19 | 5 10 15 15 19 Class Distribution -------------------- 64% | Mutant 35% | Scavenger-Mutant Dominant Class ---------------- Mutant | -10/Materials Scavenger-Mutant | -9/Materials Scavenger-Mutant | -9/Mines Mutant | -9/Exiles Resources | -11 -10 -9 -9 -9 ----------- Run | Jun Mat Mat Min Exi Matter Collected 633 | 250 65 284 34 . Remotely . | . . . . . Salvage Created 1445 | 187 345 761 119 33 Parts 102 | 16 30 48 8 . Haulers Intercepted 6 | . 2 4 . . Recyclers Shooed 2 | . 1 1 . . Parts Field Recycled . | . . . . . Retrieved Matter . | . . . . . Parts Self-Destructed . | . . . . . Prevented . | . . . . . Kills | -11 -10 -9 -9 -9 ------- Run | Jun Mat Mat Min Exi Combat Hostiles Destroyed 31 | . 4 17 3 7 Guns 19 | . 3 13 3 . AOE 11 | . . 4 . 7 Classes Destroyed 10 | 2 6 1 . 1 Worker 5 | . 2 3 . . Tunneler 6 | 5 . 1 . . Hauler 6 | . 2 4 . . Recycler 1 | 1 . . . . Operator 3 | . 2 1 . . Watcher 4 | . 2 2 . . Swarmer 6 | . 2 4 . . Grunt 15 | . 2 10 3 . Sentry 3 | . . 3 . . Assembled 7 | . . . . 7 Best Kill Streak 7 | 3 4 7 3 7 Combat Bots Only 7 | . 2 4 3 7 Max Kills in Single Turn 3 | 1 3 3 1 3 Gunslinging 1 | . . 1 . . Exploded 3 | . . 2 . 3 Melee . | . . . . . Uniques/NPCs Destroyed . | . . . . . Combat | -11 -10 -9 -9 -9 -------- Run | Jun Mat Mat Min Exi Damage Taken 1436 | . 155 1085 42 154 Core 429 | . 28 350 18 33 Absorbed by Shields . | . . . . . Core Remaining (%) 94 | 100 88 . . . Volleys Fired 132 | 17 35 65 8 7 Largest 2 | 2 2 2 2 1 Hottest 100 | 90 100 100 46 100 Shots Fired 245 | 30 66 126 16 7 Gun 228 | 30 63 119 16 . Cannon 7 | . . . . 7 Launcher 7 | . . 7 . . Special 3 | . 3 . . . Kinetic 82 | . . 66 16 . Thermal 156 | 30 66 53 . 7 Explosive 7 | . . 7 . . Electromagnetic . | . . . . . Robot Hit Streak 12 | 3 6 11 12 . Robot Miss Streak 5 | 2 5 4 1 . Penetration Max . | . . . . . Secondary Targets 1 | . . 1 . . Max Gunslinging Chain 1 | . . 1 . . Shots Hit Robots 146 | 10 30 93 13 . Core Hits 89 | 7 18 53 4 7 Critical Kills . | . . . . . Critical Parts Destroyed . | . . . . . Critical Strikes 6 | . 4 2 . . Burn 6 | . 4 2 . . Melee Attacks . | . . . . . Impact . | . . . . . Slashing . | . . . . . Piercing . | . . . . . Sneak Attacks . | . . . . . Combat Hostiles . | . . . . . Follow-up Attacks . | . . . . . Damage Inflicted 3606 | 124 560 2049 193 680 Guns 1898 | 124 360 1221 193 . Cannons 112 | . . . . 112 Explosions 1596 | . 200 828 . 568 Melee . | . . . . . Ramming . | . . . . . Kinetic 913 | . . 720 193 . Thermal 1699 | 124 394 501 . 680 Explosive 828 | . . 828 . . Electromagnetic 166 | . 166 . . . Impact . | . . . . . Slashing . | . . . . . Piercing . | . . . . . Highest Corruption . | . . . . . Average Corruption . | . . . . . Corruption Purged . | . . . . . Corruption Blocked . | . . . . . Overload Shots . | . . . . . Overflow Damage 18 | . . 18 . . Projectiles . | . . . . . Explosions 18 | . . 18 . . Melee . | . . . . . Knockbacks . | . . . . . Impact . | . . . . . Kinetic . | . . . . . Secondary . | . . . . . Self-Inflicted Damage . | . . . . . Shots . | . . . . . Rammed . | . . . . . Targets Rammed . | . . . . . Kicked . | . . . . . Crushed . | . . . . . Highest Temperature 261 | 210 195 261 2 36 Average Temperature 66 | 92 53 83 2 14 Received Heat Transfer 450 | . 48 378 24 . Effects 1 | 1 . . . . Interference 1 | 1 . . . . Siege Activations . | . . . . . Robots Corrupted . | . . . . . Combat Hostiles . | . . . . . Parts Fried . | . . . . . Impact Corruptions . | . . . . . Robots Melted 1 | . 1 . . . Combat Hostiles 1 | . 1 . . . Parts Melted 6 | 1 2 3 . . Heat Transferred 3832 | 334 1310 1628 . 560 Parts Sabotaged . | . . . . . Parts Stolen . | . . . . . Parts Stripped . | . . . . . Power Chain Reactions 1 | . 1 . . . Missiles Intercepted . | . . . . . Alert | -11 -10 -9 -9 -9 ------- Run | Jun Mat Mat Min Exi Peak Influence 372 | 30 304 372 214 . Initial 144 | . 19 1 144 . Average 147 | 14 110 181 153 . Maximum Alert Level 1 | . 1 1 1 . Low Security (%) 68 | 100 81 55 91 . Level 1 31 | . 18 45 8 . Level 2 . | . . . . . Level 3 . | . . . . . Level 4 . | . . . . . Level 5 . | . . . . . High Security . | . . . . . Max Security . | . . . . . Squads Dispatched 4 | . 2 2 . . Investigation 2 | . 1 1 . . Extermination . | . . . . . Reinforcement 2 | . 1 1 . . Assault . | . . . . . Garrison . | . . . . . Intercept . | . . . . . Searches Triggered . | . . . . . Construction Impeded . | . . . . . Haulers Reinforced . | . . . . . Active Scanning Responses . | . . . . . Cargo Convoy Interrupts . | . . . . . Stealth | -11 -10 -9 -9 -9 --------- Run | Jun Mat Mat Min Exi Distress Signals 3 | . . 3 . . Communications Jammed . | . . . . . Distress Signals . | . . . . . Times Spotted 61 | . 12 40 3 6 Peak Tracking Total 9 | . 5 6 3 9 Tactical Retreats 5 | . 3 2 . . Traps | -11 -10 -9 -9 -9 ------- Run | Jun Mat Mat Min Exi Traps Triggered 3 | . 1 2 . . Indirectly . | . . . . . Trap Hack Attempts . | . . . . . Triggered . | . . . . . Disarmed . | . . . . . Reprogrammed . | . . . . . Reused . | . . . . . Traps Extracted . | . . . . . Installed . | . . . . . Triggered . | . . . . . Machines | -11 -10 -9 -9 -9 ---------- Run | Jun Mat Mat Min Exi Machines Disabled 5 | . 2 1 . 2 Max in Single Turn 2 | . 2 1 . 1 Machines Repaired . | . . . . . Machines Sabotaged . | . . . . . Overloaded Fab Kills . | . . . . . Hacking | -11 -10 -9 -9 -9 --------- Run | Jun Mat Mat Min Exi Machines Accessed 15 | . 6 9 . . Terminals 15 | . 6 9 . . Fabricators . | . . . . . Repair Stations . | . . . . . Recycling Units . | . . . . . Scanalyzers . | . . . . . Garrison Access . | . . . . . Total Hacks 52 | . 23 29 . . Successful 29 | . 14 15 . . Failed 23 | . 9 14 . . Catastrophic 3 | . 1 2 . . Database Lockouts . | . . . . . Manual 39 | . 16 22 . 1 Terminals 52 | . 23 29 . . Fabricators . | . . . . . Repair Stations . | . . . . . Recycling Units . | . . . . . Scanalyzers . | . . . . . Garrison Access . | . . . . . Terminal Hacks 14 | . 7 7 . . Part Schematic 1 | . 1 . . . Prototype ID Bank 4 | . 1 3 . . Branch Access Points 1 | . . 1 . . Terminal Index 3 | . 2 1 . . Unreport Threat 1 | . 1 . . . Maintenance Status 1 | . . 1 . . Hauler Manifests 1 | . 1 . . . Registered Prototypes 1 | . . 1 . . Zone Layout 1 | . 1 . . . Fabricator Hacks . | . . . . . Repair Station Hacks . | . . . . . Recycling Unit Hacks . | . . . . . Scanalyzer . | . . . . . Garrison Access Hacks . | . . . . . Unauthorized Hacks 15 | . 7 8 . . Terminals 15 | . 7 8 . . Track 1 | . 1 . . . Assimilate 1 | . 1 . . . Botnet 13 | . 5 8 . . Fabricators . | . . . . . Repair Stations . | . . . . . Recycling Units . | . . . . . Scanalyzers . | . . . . . Garrison Access . | . . . . . Data Cores Recovered . | . . . . . Used . | . . . . . Hacking Detections 14 | . 6 8 . . Full Trace Events . | . . . . . Feedback Events . | . . . . . Feedback Blocked . | . . . . . Robot Schematics Acquired . | . . . . . Robots Built . | . . . . . Authchips . | . . . . . Time . | . . . . . Total Robot Build Rating . | . . . . . Part Schematics Acquired 1 | . 1 . . . Parts Built . | . . . . . Authchips . | . . . . . Time . | . . . . . Total Part Build Rating . | . . . . . Parts Repaired . | . . . . . Time . | . . . . . Parts Recycled . | . . . . . Recycled Matter . | . . . . . Retrieved Matter . | . . . . . Retrieved Components . | . . . . . Parts Scanalyzed . | . . . . . Part Schematics Acquired . | . . . . . Parts Damaged . | . . . . . Bothacking | -11 -10 -9 -9 -9 ------------ Run | Jun Mat Mat Min Exi Used RIF Installer . | . . . . . Robots Hacked . | . . . . . Non-combat . | . . . . . Combat . | . . . . . Robot Hacks Applied . | . . . . . Relay Couplers Released . | . . . . . Fabnet Peak Effective % . | . . . . . Robots Rewired . | . . . . . Allies Hacked . | . . . . . Hacks Repelled . | . . . . . Allies | -11 -10 -9 -9 -9 -------- Run | Jun Mat Mat Min Exi Total Allies 1 | . 1 . . . Largest Group 1 | . 1 . . . Highest-Rated Group 10 | . 10 . . . Highest-Rated Ally 10 | . 10 . . . Total Orders . | . . . . . Ally Attacks . | . . . . . Total Damage . | . . . . . Kills . | . . . . . Allies Corrupted . | . . . . . Allies Melted . | . . . . . Intel | -11 -10 -9 -9 -9 ------- Run | Jun Mat Mat Min Exi Robot Analysis Total . | . . . . . Derelict Logs Recovered 1 | . . . 1 . Drone Launches . | . . . . . Drone Recoveries . | . . . . . Exploration | -11 -10 -9 -9 -9 ------------- Run | Jun Mat Mat Min Exi Turns Passed 2023 | 118 527 1020 120 238 Spaces Moved 1278 | 60 411 568 89 150 Core 7 | 7 . . . . Treads 1 | . . 1 . . Legs . | . . . . . Wheels 1270 | 53 411 567 89 150 Hover . | . . . . . Flight . | . . . . . Fastest Speed 50 | 50 80 95 100 100 Average Speed 96 | 88 85 98 100 118 Slowest Speed 240 | 95 95 240 100 120 Overloaded Moves . | . . . . . Propulsion Burnouts . | . . . . . Robots Hopped . | . . . . . Cave-ins Triggered . | . . . . . Exploration Rate (%) 39 | 4 66 66 19 44 Regions Visited 4 Branch Regions 2 Pre-discovered Areas . | . . . . . Known Exits Taken 1 | . . 1 . . Unknown Exits Taken 3 | 1 1 . 1 . Scrap Searched . | . . . . . Spaces Dug 2 | . 2 . . . Terrain Destroyed 77 | . 5 34 . 38 Melee . | . . . . . Projectile 4 | . 2 . . 2 AOE 73 | . 3 34 . 36 Terrain Rammed . | . . . . . Walls Destroyed . | . . . . . Machines Disabled . | . . . . . Actions | -11 -10 -9 -9 -9 --------- Run | Jun Mat Mat Min Exi Total 1808 | 95 514 903 104 192 Wait 296 | 2 50 221 8 15 Move 1274 | 59 410 567 88 150 Hop . | . . . . . Pick Up 53 | 11 10 24 . 8 Fast Attach . | . . . . . Attach 22 | 5 3 11 . 3 Detach . | . . . . . Swap 13 | . 4 6 . 3 Drop 18 | 1 2 9 . 6 Fire 132 | 17 35 65 8 7 Melee . | . . . . . Ram . | . . . . . Kick . | . . . . . Crush . | . . . . . Escape Stasis . | . . . . . Rewire . | . . . . . Trap . | . . . . . Miscellaneous . | . . . . . Route ------- -11/Junkyard -10/Materials (discovered 2 exits: *Mat x2) -9/Materials (discovered 4 exits: [*Mat x2] / *Min x2) -9/Mines (discovered 2 exits: [*Mat] / *Exi) -9/Exiles (discovered 1 exit: [*Min]) History --------- Turn | Location | Event 8 | -11/Junkyard | Discovered new exit (range 15) 119 | -11/Junkyard | Entered Materials 225 | -10/Materials | Discovered new exit (range 18) 303 | -10/Materials | Build established: Mutant 614 | -10/Materials | Discovered new exit (range 5) 646 | -10/Materials | Entered another Materials area 646 | -9/Materials | Evolved 2 slots: Utility x2 1129 | -9/Materials | Core integrity fell below 50% 1165 | -9/Materials | Lost 6 parts (1p3n2w) 1259 | -9/Materials | Discovered new exit (range 15) 1390 | -9/Materials | Build established: Scavenger-Mutant 1440 | -9/Materials | Identified exit to Mines 1508 | -9/Materials | Core integrity fell below 20% 1586 | -9/Materials | Discovered new exit (range 12) 1666 | -9/Materials | Entered Mines 1672 | -9/Mines | Learned Materials terminal intel 1727 | -9/Mines | Discovered new exit (range 11) 1782 | -9/Mines | Deemed a non-threat by the Exiles lab entrance 1782 | -9/Mines | Discovered new exit (range 5) 1786 | -9/Mines | Entered Exiles 1812 | -9/Exiles | Discovered new exit (range 17) 1829 | -9/Exiles | Met 8R-AWN 1847 | -9/Exiles | Met EX-HEX 1887 | -9/Exiles | Met EX-BIN 1905 | -9/Exiles | Aligned with FarCom system 1906 | -9/Exiles | Given EX-Vault access code 1941 | -9/Exiles | Opened EX-Vault 1947 | -9/Exiles | Found Prototype Slashing Weapon 1948 | -9/Exiles | Identified Longsword +1 1951 | -9/Exiles | Found Prototype Energy Cannon 1953 | -9/Exiles | Identified Firepult 1958 | -9/Exiles | Found Prototype Energy Cannon 1959 | -9/Exiles | Identified YOLO Cannon 1962 | -9/Exiles | Attacked by the Exiles 2024 | -9/Exiles | Destroyed by 8R-AWN with 8R-AWN's Boregun Last Messages --------------- 01948_ Identified Longsword +1. 01949_ Dropped Longsword +1. 01951_ Acquired Prototype Energy Cannon. 01952_ Dropped Hvy. Assault Rifle. 01953_ Identified Firepult. 01954_ Dropped Firepult. 01958_ Acquired Prototype Energy Cannon. 01959_ Identified YOLO Cannon. 01962_ EXILES: Hostile robot within lab perimeter. Defensive protocols time, folks! 01984_ as-43605 destroyed. 01984_ as-79217 destroyed. 01984_ as-24657 destroyed. 01988_ as-84494 destroyed. 01988_ as-55168 destroyed. 01992_ HEX's Terminal disabled. 02008_ as-61139 destroyed. 02016_ Acquired Longsword +1. 02019_ Acquired Firepult. 02022_ Penetrated by HV Slug. Map ----- +----------------------------------------------------+ | | | | | | | | | | | | | | | | | | | | | | | | | | | | | | | | | | | | | | | | | | | | | ???????????????????#########?????????????????????? | | ???????????#???????# #?????#???????????????? | | ???????????????????# #????????#????????????? | | ????????????????#??# [@ #????#????????????????? | | ????????#???????##?# X#?????????????????????? | | ???????????????????## ##????#???#?#??????????? | | ???????????????????#X ; #????????????????????? | | ?????????????????#?## ; ##???????????????????? | | ????????????????????# ; #??????#?????????????? | | ?????????????#??????# "#?####???????????????? | | ??????????#?????????# """""???????????????? | | ????????????#???#???# """???????????????? | | ????????????????????# % ""#??????????????? | | ???????????#???#????# ""???????????????? | | ?????????????#####??# ""???????????????? | | ????????????#""""""?# ;"""##???????????????? | | ????????????#"""" ## ##????????????????? | | ????????????#""X" ####?????????????????? | | ????????????#" #????????????????????? | | ????????????#" ## % #????????????????????? | | ????????????#""""""?# #########?????#??????? | | ????????????##"###??# #?#"""""""#????????????? | | ?????????#?? ??????# #?#"""""""#????????????? | | ????????????????????# #?#"""""""#????????????? | | ?????????????"?????## ###"" """"#????????????? | | ??????????#????????#" """"#????????????? | | ??????????????????##" """#?????????#??? | | ????????????????#??#" """#????????????? | +----------------------------------------------------+ Best States ------------- Heat Dissipation 28 Energy Generation 14 Energy Capacity 280 Matter Stores 300 Matter Capacity 300 Sight Range 18 Terrain Scan Range 16 Terrain Scan Density 10 Evasion (%) 50 Targeting Accuracy 8 Recoil Reduction 1 Item Schematics ----------------- Lrg. Storage Unit | -10/Materials | Hacked Robot Schematics ------------------ None Fabricated ------------ Nothing Alien Tech Used ----------------- None Achievements -------------- None Challenges ------------ None Game ------ Seed QuantumMobileBeam Manual? 0 Play Time 00:21:23 Cumulative 324.1 hours Start 2023.10.27 @ 07:04:41 End 2023.10.27 @ 07:23:59 Sessions 1 Manual Loads 0 Difficulty Rogue Special Mode None Game No. 369 Rogue 369 Adventurer 0 Explorer 0 Win Type - Total 6 Types 3/1/1/1/0/0/0/0/0 Lore% 65 Gallery% 79 Achievement% 67 Wizard Run 0 Options --------- ASCII 0 Keyboard 0 Movement Numpad Keybinds 0 Fullscreen 1 Font 24/Smallcaps Map View 76x50 Tactical HUD 1 Map Filters NONE Filters NONE Steam 1 RUN: fdb5e8c7-9526-488e-9649-628608b6fb02